Cogmind - Beta 10.2 @@@ ROGUE MODE // 2020.12.31 @ 13:51:40 Player: sentrybuster Result: Self-destructed Performance ------------- Evolutions (1) 500 Regions Visited (2) 400 Robots Destroyed (5) 25 Value Destroyed (113) 113 Prototype IDs (0) 0 Alien Tech Used (0) 0 Bonus (0) 0 TOTAL SCORE: 1038 Bonus ------- None Cogmind --------- Core Integrity 335/400 Matter 300/300 Energy 100/100 System Corruption 0% Temperature Cool (0) Movement Rolling (80) Location -9/Materials Parts ------- > --- POWER (1) -------- (None) > --- PROPULSION (3) --- Wheel > --- UTILITY (3) ------ Small Storage Unit Structural Scanner > --- WEAPON (2) ------- (None) > --- INVENTORY (6) ---- Light Ion Engine Aluminum Leg Aluminum Leg Sensor Array Small Laser Light Assault Rifle Peak State ------------ > --- POWER ------------ Light Ion Engine > --- PROPULSION ------- Wheel Compact Wheel > --- UTILITY ---------- Small Storage Unit Structural Scanner > --- WEAPON ----------- Small Laser Assault Rifle > --- INVENTORY -------- Light Ion Engine Aluminum Leg Aluminum Leg Light Assault Rifle [Rating: 7] Favorites ----------- Power Light Ion Engine Engine Light Ion Engine Propulsion Compact Wheel Wheel Compact Wheel Utility Small Storage Unit Device Structural Scanner Storage Small Storage Unit Weapon Assault Rifle Energy Gun Small Laser Energy Cannon Beam Cannon Ballistic Gun Assault Rifle Build | -11 -10 -9 ------- Run | Scr Mat Mat Slots Evolved 2 | . . 2 Power . | . . . Propulsion 1 | . . 1 Utility 1 | . . 1 Weapon . | . . . Parts Attached 8 | 6 2 . Power 1 | 1 . . Engine 1 | 1 . . Core . | . . . Reactor . | . . . Propulsion 2 | 2 . . Treads . | . . . Leg . | . . . Wheel 2 | 2 . . Hover . | . . . Flight . | . . . Utility 2 | 1 1 . Device 1 | . 1 . Storage 1 | 1 . . Processor . | . . . Hackware . | . . . Protection . | . . . Artifact . | . . . Weapon 3 | 2 1 . Energy Gun 1 | 1 . . Energy Cannon 1 | . 1 . Ballistic Gun 1 | 1 . . Ballistic Cannon . | . . . Launcher . | . . . Special Weapon . | . . . Impact Weapon . | . . . Slashing Weapon . | . . . Piercing Weapon . | . . . Special Melee Weapon . | . . . Unidentified Prototypes . | . . . Parts Lost 4 | . . 4 Power 1 | . . 1 Propulsion 1 | . . 1 Utility . | . . . Weapon 2 | . . 2 Highest Loss Streak 4 | . . 4 Average Slot Usage (%) 90 | . 100 72 Engine 12 | . 14 9 Wheel 25 | . 28 20 Device 12 | . 14 11 Storage 12 | . 14 11 Energy Gun 1 | . 2 . Energy Cannon 10 | . 11 9 Ballistic Gun 12 | . 14 9 Naked Turns . | . . . Heaviest Build 13 | 10 13 13 Greatest Support 26 | 26 26 26 Greatest Overweight (x) . | . . . Average Overweight (x) . | . . . Largest Inventory Capacity 6 | 6 6 6 Average Capacity 5 | 5 6 6 Most Carried 6 | 4 6 6 Average Carried 4 | 1 5 6 Final Capacity 6 | 6 6 6 Final Carried 6 | 4 6 6 Class Distribution -------------------- 100% | Mutant Dominant Class ---------------- Mutant | -10/Materials Mutant | -9/Materials Resources | -11 -10 -9 ----------- Run | Scr Mat Mat Matter Collected 307 | 225 82 . Remotely . | . . . Salvage Created 186 | . 186 . Parts 9 | . 9 . Haulers Intercepted . | . . . Recyclers Shooed . | . . . Parts Field Recycled . | . . . Retrieved Matter . | . . . Parts Self-Destructed . | . . . Prevented . | . . . Kills | -11 -10 -9 ------- Run | Scr Mat Mat Combat Hostiles Destroyed 3 | . 2 1 Guns 2 | . 1 1 Cannons 1 | . 1 . Classes Destroyed 4 | . 3 1 Recycler 1 | . 1 . Watcher 1 | . 1 . Swarmer 1 | . . 1 Grunt 2 | . 2 . Best Kill Streak 3 | . 3 1 Combat Bots Only 2 | . 2 1 Max Kills in Single Turn 1 | . 1 1 Gunslinging . | . . . Exploded . | . . . Melee . | . . . Uniques/NPCs Destroyed . | . . . Combat | -11 -10 -9 -------- Run | Scr Mat Mat Damage Taken 396 | . 26 370 Core 65 | . . 65 Absorbed by Shields . | . . . Core Remaining (%) 100 | 100 100 . Volleys Fired 13 | . 9 4 Largest 2 | . 2 2 Hottest 80 | . 80 80 Shots Fired 24 | . 18 6 Gun 13 | . 9 4 Cannon 11 | . 9 2 Launcher . | . . . Special . | . . . Kinetic 13 | . 9 4 Thermal 11 | . 9 2 Explosive . | . . . Electromagnetic . | . . . Robot Hit Streak 9 | . 9 3 Robot Miss Streak 1 | . 1 1 Penetration Max . | . . . Secondary Targets . | . . . Shots Hit Robots 15 | . 12 3 Core Hits 7 | . 6 1 Critical Hits . | . . . Critical Kills . | . . . Critical Parts Destroyed . | . . . Melee Attacks . | . . . Impact . | . . . Slashing . | . . . Piercing . | . . . Sneak Attacks . | . . . Combat Hostiles . | . . . Follow-up Attacks . | . . . Damage Inflicted 213 | . 184 29 Guns 89 | . 60 29 Cannons 124 | . 124 . Explosions . | . . . Melee . | . . . Ramming . | . . . Kinetic 89 | . 60 29 Thermal 124 | . 124 . Explosive . | . . . Electromagnetic . | . . . Impact . | . . . Slashing . | . . . Piercing . | . . . Highest Corruption . | . . . Average Corruption . | . . . Corruption Purged . | . . . Overload Shots . | . . . Overflow Damage . | . . . Projectiles . | . . . Explosions . | . . . Melee . | . . . Knockbacks . | . . . Impact . | . . . Kinetic . | . . . Secondary . | . . . Self-Inflicted Damage . | . . . Shots . | . . . Rammed . | . . . Targets Rammed . | . . . Kicked . | . . . Crushed . | . . . Highest Temperature 81 | . 81 9 Average Temperature 27 | . 30 4 Received Heat Transfer 90 | . 15 75 Siege Activations . | . . . Robots Corrupted . | . . . Combat Hostiles . | . . . Parts Fried . | . . . Impact Corruptions . | . . . Robots Melted . | . . . Combat Hostiles . | . . . Parts Melted 1 | . 1 . Heat Transferred 259 | . 259 . Parts Sabotaged . | . . . Parts Stolen . | . . . Parts Stripped . | . . . Power Chain Reactions . | . . . Missiles Intercepted . | . . . Alert | -11 -10 -9 ------- Run | Scr Mat Mat Peak Influence 168 | . 92 168 Initial 38 | . . 38 Average 54 | . 58 79 Maximum Alert Level . | . . . Low Security (%) 100 | 100 100 100 Level 1 . | . . . Level 2 . | . . . Level 3 . | . . . Level 4 . | . . . Level 5 . | . . . High Security . | . . . Max Security . | . . . Squads Dispatched 2 | . . 2 Investigation 1 | . . 1 Extermination . | . . . Reinforcement 1 | . . 1 Assault . | . . . Garrison . | . . . Intercept . | . . . Construction Impeded . | . . . Haulers Reinforced . | . . . Stealth | -11 -10 -9 --------- Run | Scr Mat Mat Distress Signals 1 | . 1 . Communications Jammed . | . . . Distress Signals . | . . . Times Spotted 19 | . 4 15 Peak Tracking Total 12 | . 5 12 Tactical Retreats 2 | . 1 1 Traps | -11 -10 -9 ------- Run | Scr Mat Mat Traps Triggered . | . . . Indirectly . | . . . Trap Hack Attempts . | . . . Triggered . | . . . Disarmed . | . . . Reprogrammed . | . . . Reused . | . . . Traps Extracted . | . . . Installed . | . . . Triggered . | . . . Machines | -11 -10 -9 ---------- Run | Scr Mat Mat Machines Disabled . | . . . Max in Single Turn . | . . . Machines Sabotaged . | . . . Garrisons Compromised . | . . . Overloaded Fab Kills . | . . . Fab Network Shutdowns . | . . . Hacking | -11 -10 -9 --------- Run | Scr Mat Mat Machines Accessed 3 | . 2 1 Terminals 2 | . 1 1 Fabricators . | . . . Repair Stations . | . . . Recycling Units 1 | . 1 . Scanalyzers . | . . . Garrison Access . | . . . Total Hacks 6 | . 2 4 Successful 1 | . 1 . Failed 5 | . 1 4 Catastrophic 1 | . . 1 Database Lockouts . | . . . Manual . | . . . Terminals 5 | . 1 4 Fabricators . | . . . Repair Stations . | . . . Recycling Units 1 | . 1 . Scanalyzers . | . . . Garrison Access . | . . . Terminal Hacks . | . . . Fabricator Hacks . | . . . Repair Station Hacks . | . . . Recycling Unit Hacks 1 | . 1 . Retrieve Components 1 | . 1 . Scanalyzer . | . . . Garrison Access Hacks . | . . . Unauthorized Hacks . | . . . Terminals . | . . . Fabricators . | . . . Repair Stations . | . . . Recycling Units . | . . . Scanalyzers . | . . . Garrison Access . | . . . Data Cores Recovered . | . . . Used . | . . . Hacking Detections 2 | . 1 1 Full Trace Events 1 | . . 1 Feedback Events . | . . . Feedback Blocked . | . . . Robot Schematics Acquired . | . . . Robots Built . | . . . Matter . | . . . Time . | . . . Total Robot Build Rating . | . . . Part Schematics Acquired . | . . . Parts Built . | . . . Matter . | . . . Time . | . . . Total Part Build Rating . | . . . Parts Repaired . | . . . Time . | . . . Parts Recycled . | . . . Recycled Matter . | . . . Retrieved Matter . | . . . Retrieved Components 5 | . 5 . Parts Scanalyzed . | . . . Part Schematics Acquired . | . . . Parts Damaged . | . . . Bothacking | -11 -10 -9 ------------ Run | Scr Mat Mat Used RIF Installer . | . . . Robots Hacked . | . . . Non-combat . | . . . Combat . | . . . Robot Hacks Applied . | . . . Relay Couplers Released . | . . . Robots Rewired . | . . . Allies Hacked . | . . . Hacks Repelled . | . . . Allies | -11 -10 -9 -------- Run | Scr Mat Mat Total Allies . | . . . Largest Group . | . . . Highest-Rated Group . | . . . Highest-Rated Ally . | . . . Total Orders . | . . . Ally Attacks . | . . . Total Damage . | . . . Kills . | . . . Allies Corrupted . | . . . Allies Melted . | . . . Intel | -11 -10 -9 ------- Run | Scr Mat Mat Robot Analysis Total . | . . . Derelict Logs Recovered . | . . . Drone Launches . | . . . Drone Recoveries . | . . . Exploration | -11 -10 -9 ------------- Run | Scr Mat Mat Turns Passed 309 | 52 168 89 Spaces Moved 273 | 42 145 86 Core 1 | 1 . . Treads . | . . . Legs . | . . . Wheels 272 | 41 145 86 Hover . | . . . Flight . | . . . Fastest Speed 50 | 50 90 90 Average Speed 89 | 89 90 90 Slowest Speed 100 | 100 90 90 Overloaded Moves . | . . . Propulsion Burnouts . | . . . Robots Hopped . | . . . Cave-ins Triggered . | . . . Exploration Rate (%) 17 | 3 28 21 Regions Visited 2 Branch Regions . Pre-discovered Areas . | . . . Known Exits Taken . | . . . Unknown Exits Taken 2 | 1 1 . Scrap Searched . | . . . Spaces Dug . | . . . Terrain Destroyed . | . . . Melee . | . . . Projectile . | . . . AOE . | . . . Terrain Rammed . | . . . Walls Destroyed . | . . . Machines Disabled . | . . . Actions | -11 -10 -9 --------- Run | Scr Mat Mat Total 307 | 53 163 91 Wait 9 | 2 6 1 Move 271 | 41 144 86 Hop . | . . . Pick Up 5 | 4 1 . Fast Attach 8 | 6 2 . Attach . | . . . Detach 1 | . 1 . Swap . | . . . Drop . | . . . Fire 13 | . 9 4 Melee . | . . . Ram . | . . . Kick . | . . . Crush . | . . . Escape Stasis . | . . . Rewire . | . . . Trap . | . . . Miscellaneous . | . . . Route ------- -11/Scrapyard -10/Materials -9/Materials History --------- Turn | Location | Event 25 | -11/Scrapyard | Discovered new exit (range 15) 53 | -11/Scrapyard | Entered Materials 172 | -10/Materials | Discovered new exit (range 11) 221 | -10/Materials | Entered another Materials area 221 | -9/Materials | Evolved 2 slots: Propulsion x1, Utility x1 310 | -9/Materials | Self-destructed Last Messages --------------- 00229_ K-01 Serf collects debris. 00237_ Connecting with Terminal... 00237_ Current location identified: Materials 00237_ ALERT: Suspicious activity at Terminal M009. Dispatching Investigation squad. 00238_ K-01 Serf collects debris. 00261_ ALERT: Hostiles spotted, dispatching reinforcements to Terminal M004. 00282_ K-01 Serf collects debris. 00300_ Lgt. Ion Engine destroyed. 00305_ Beam Cannon destroyed. 00306_ Fusion Modulator explodes. 00306_ R-06 Scavenger destroyed. 00306_ L-31 Rogue destroyed. 00306_ S-10 Pest destroyed. 00308_ U-05 Engineer lays Concrete. 00308_ K-01 Serf collects debris. 00308_ Assault Rifle destroyed. 00309_ Com. Wheel destroyed. 00309_ U-05 Engineer lays Concrete. Map ----- +----------------------------------------------------+ | ???# #???????????????????????????????????? | | ???# #????????????????#??????????????????? | | ???# #?????????????? #?????????????????? | | #### #?????????????? #?????????????????? | | + #?????????????? #?????????????????? | | #### #?????????????? #?????????????????? | | ???#+#####/###???????????? #?????????????????? | | ?### ### ##+###???????"" #?????????????????? | | #####???"" #?????????????????? | | +???"" ??????????????????? | | #??? ???????????????????? | | #####+###########??????????? | | # ???????????? | | ######## # u #????????????????? | | ???????# # !== ;#+#????????????????? | | ???????# # !=! * ; ????????????????? | | ???????#^ # !=! g % ; ""????????????????? | | ??????? # g%= ss ; ""????????????????? | | ?????? # %/ k; "?????????????????? | | ????? # * w ; ??????????????????? | | ???? ## # ;;???????????????????? | | ????###?# #########; ;????????????????????? | | ????????# ?????????# #????????????????????? | | ????????? ?????????# #????????????????????? | | ??????????????????????# ######???????????????? | | ??????????????????????# @ ????????? | | ??????????????????????# ####a######????????????? | | ??????????????????????# #????#?????????????????? | | ??????????????????????# #??????????????????????? | | ??????????????????????# #??????????????????????? | | ??????????????????????# #??????????????????????? | | ??????????????????????# Y#??????????????????????? | | ?????????????????????? ??????????????????????? | | ?????????????????????? ! = ??????????????????????? | | ????????????????????? Y ??????????????????????? | | ????????????????????? #?????????????????????? | | ?????????????????????#| [ #?????????????????????? | | ?????????????????????## ##?????????????????????? | | ??????????????????????# ???????????????????????? | | ??????????????????????# ???????????????????????? | | ??????????????????????? ???????????????????????? | | ?????????????????????????????????????????????????? | | ?????????????????????????????????????????????????? | | ?????????????????????????????????????????????????? | | ?????????????????????????????????????????????????? | | ?????????????????????????????????????????????????? | | ?????????????????????????????????????????????????? | | ?????????????????????????????????????????????????? | | ?????????????????????????????????????????????????? | | ?????????????????????????????????????????????????? | +----------------------------------------------------+ Best States ------------- Heat Dissipation 28 Energy Generation 10 Energy Capacity 125 Matter Stores 300 Matter Capacity 300 Sight Range 16 Terrain Scan Density 10 Evasion (%) 42 Item Schematics ----------------- None Robot Schematics ------------------ None Fabricated ------------ Nothing Alien Tech Used ----------------- None Achievements -------------- None Challenges ------------ None Game ------ Seed TerrabombTransportMachine Manual? 0 Play Time 00:07:21 Cumulative 102.3 hours Start 2020.12.30 @ 19:30:29 End 2020.12.31 @ 13:51:40 Sessions 3 Manual Loads 0 Difficulty Rogue Special Mode None Game No. 188 Rogue 184 Adventurer 0 Explorer 4 Win Type - Total 0 Types 0/0/0/0/0/0/0/0/0 Lore% 61 Gallery% 68 Achievement% 46 Wizard Run 0 Options --------- ASCII 1 Keyboard 1 Movement Numpad Keybinds 0 Fullscreen 1 Font 18/SmallcapsGlow Map View 76x50 Tactical HUD 1 Map Filters NONE Filters NONE Steam 1 RUN: a7e6b653-d229-45d2-8975-f4750ebf1e24